bitfinex/quotes_ETHUSD_20251221
["timestamp","ask_amount","ask_price","bid_price","bid_amount"]
[1766339897220,3.5928,2985.5,2985.0,3.2808]
[1766339897389,1.3004,2985.5,2985.0,3.2808]
[1766339897589,3.29878214,2985.7,2985.0,3.2808]
[1766339897784,4.59918214,2985.7,2985.1,2.3377]
[1766339898001,1.3004,2985.6,2985.1,2.3377]
[1766339898315,0.002,2985.5,2985.1,2.3377]
[1766339899406,0.002,2985.5,2985.0,0.9431]
[1766339899407,3.5948,2985.5,2985.0,3.2808]
[1766339899713,3.5948,2985.5,2985.0,3.60888]
[1766339902011,1.3024,2985.5,2985.0,3.60888]
[1766339902926,1.3024,2985.5,2985.1,2.3377]
[1766339906498,0.002,2985.5,2985.1,2.3377]
[1766339906884,0.002,2985.5,2985.2,0.4751]
[1766339907114,0.002,2985.5,2985.3,2.2223]
[1766339907520,0.002,2985.5,2985.2,0.4751]
[1766339907693,0.002,2985.5,2985.1,2.583188]
[1766339908992,1.2624,2985.9,2985.2,2.2223]
[1766339909192,0.002,2985.9,2985.4,2.69]
[1766339909386,0.002,2985.9,2985.6,2.2223]
[1766339909623,0.002,2986.0,2985.6,2.2223]
[1766339910010,0.002,2986.0,2985.8,2.2223]
[1766339912105,0.002,2986.0,2985.8,2.49103]
[1766339912901,0.002,2986.1,2985.8,2.49103]
[1766339913306,0.002,2986.1,2985.8,2.94563]
[1766339913522,0.002,2986.1,2985.9,2.2223]
[1766339915022,0.002,2986.0,2985.9,2.2223]
[1766339915324,0.002,2986.0,2985.9,2.5302772]
[1766339917121,0.002,2986.0,2985.9,0.3079772]
[1766339917327,0.002,2986.0,2985.7,2.24464198]
[1766339918730,0.002,2986.0,2985.7,2.1105]
[1766339931340,1.2545,2986.0,2985.6,0.001]
[1766339931518,2.1355,2986.0,2985.6,0.001]
[1766339931840,1.2525,2985.9,2985.6,0.001]
[1766339937633,2.1355,2986.0,2985.6,0.001]
[1766339937634,0.002,2986.0,2985.6,0.001]
[1766339937848,0.002,2986.0,2985.6,2.1115]
[1766339938417,1.2545,2986.0,2985.6,2.1115]
[1766339939616,0.002,2986.0,2985.8,2.1105]
[1766339941541,0.002,2986.1,2985.8,2.5008]
[1766339941749,0.002,2986.2,2985.9,2.1105]
[1766339941930,0.002,2986.2,2985.9,2.5008]
[1766339942246,0.002,2986.5,2986.3,2.1105]
[1766339942447,0.002,2986.6,2986.3,2.495]
[1766339942633,0.002,2987.0,2986.5,2.491]
[1766339943041,0.002,2987.0,2986.7,2.1105]
[1766339944729,0.002,2987.0,2986.5,2.1105]
[1766339953148,2.1024,2987.0,2986.5,2.1105]
[1766339953348,3.2982,2987.0,2986.5,2.1105]
[1766339955061,5.45025889,2987.0,2986.5,2.1105]
[1766339955263,1.1978,2986.9,2986.5,2.1105]
[1766339957058,1.1978,2986.9,2986.4,1.44487599]
[1766339957232,1.1978,2986.9,2986.4,0.439]
[1766339957431,3.2982,2986.9,2986.4,0.439]
[1766339959969,3.2982,2986.9,2986.4,0.44]
[1766339960175,6.64615638,2986.9,2986.4,0.44]
[1766339960345,3.2982,2986.9,2986.4,0.44]
[1766339961072,3.2982,2986.9,2986.4,2.5604]
[1766339961272,1.1958,2986.8,2986.4,2.5604]
[1766339961480,3.2962,2986.8,2986.4,0.44]
[1766339964369,1.1958,2986.6,2986.4,0.001]
[1766339965171,2.1004,2986.7,2986.4,0.001]
[1766339968576,3.3195,2986.7,2986.4,0.001]
[1766339970755,3.3377,2986.9,2986.4,2.1118]
[1766339971076,1.2211,2986.9,2986.4,2.4451]
[1766339971284,1.2211,2986.9,2986.5,2.4441]
[1766339971285,0.002,2986.9,2986.5,2.4441]
[1766339972367,0.002,2986.9,2986.5,2.1108]
[1766339972571,0.002,2986.9,2986.7,2.1108]
[1766339973576,0.002,2986.8,2986.7,2.1108]
[1766339976502,0.002,2986.8,2986.4,0.28941]
[1766339976684,3.3026,2986.8,2986.4,0.72841]
[1766339977186,0.002,2986.8,2986.4,2.6334]
[1766339977355,0.002,2986.8,2986.4,2.5175]
[1766339977552,1.162,2986.8,2986.4,2.6334]
[1766339978477,1.162,2986.8,2986.4,2.1944]
[1766339984561,3.3026,2986.8,2986.4,2.1944]
[1766339990590,5.3156,2986.8,2986.4,2.1944]
[1766339990770,3.3026,2986.8,2986.4,2.1944]
[1766339995499,1.162,2986.8,2986.4,2.1944]
[1766339997397,0.002,2986.8,2986.4,2.1944]
[1766339997611,0.002,2986.8,2986.5,2.1934]
[1766339999010,1.162,2986.8,2986.4,0.001]
[1766340000007,2.1426,2986.8,2986.4,0.001]
[1766340000191,2.1406,2986.6,2985.9,1.00588948]
[1766340000377,2.1406,2986.6,2985.7,2.1934]
[1766340000378,3.3006,2986.3,2985.7,2.1934]
[1766340000583,1.16,2986.2,2985.7,0.7386]
[1766340000802,3.3006,2986.3,2985.8,2.1934]
[1766340001102,3.3006,2986.2,2985.7,0.439]
[1766340001317,3.63066,2986.2,2985.7,0.439]
[1766340001612,3.63066,2986.2,2985.7,2.6324]
[1766340001770,3.3006,2986.2,2985.7,2.6324]
[1766340002200,1.16,2986.2,2985.7,0.7376]
[1766340002399,1.16,2986.2,2985.8,2.1934]
[1766340002812,3.3006,2986.4,2985.8,2.1934]
[1766340003029,3.3006,2986.4,2985.8,2.4911]
[1766340003198,1.16,2986.6,2986.0,2.4911]
[1766340003817,2.1406,2986.7,2986.0,2.1934]
[1766340004014,0.002,2986.8,2986.4,2.1934]
[1766340004201,0.002,2986.8,2986.4,2.4902]
[1766340004407,0.002,2986.8,2986.4,2.1934]
[1766340004592,1.162,2986.8,2986.4,2.1934]
[1766340004797,1.97194415,2986.8,2986.4,2.1934]
[1766340005195,4.09474415,2986.8,2986.4,2.1934]
[1766340008434,4.09474415,2986.8,2986.4,2.1944]
[1766340008630,0.002,2986.8,2986.4,2.1944]
[1766340009425,1.1968,2986.8,2986.4,2.1944]
[1766340010738,2.013,2986.7,2986.4,2.1944]
[1766340010940,1.1968,2986.8,2986.4,2.1944]
[1766340012017,1.1968,2986.8,2986.4,0.001]
[1766340012210,3.3196,2986.8,2986.4,0.001]
[1766340013042,3.3196,2986.8,2986.4,2.1157]
[1766340013244,0.002,2986.8,2986.4,2.3964]
[1766340013913,0.002,2986.8,2986.4,2.1157]
[1766340014306,0.002,2986.9,2986.6,2.3909]
[1766340014926,0.002,2987.1,2986.8,2.1147]
[1766340015120,0.002,2987.2,2986.9,2.1147]
[1766340015323,1.00785238,2987.3,2987.1,2.1147]
[1766340015743,0.002,2987.3,2987.1,2.1147]
[1766340015930,3.01870064,2987.8,2987.1,2.62139]
[1766340016115,3.01870064,2987.8,2986.9,0.439]
[1766340016116,3.01870064,2987.8,2987.3,2.1147]
[1766340016607,1.00570064,2987.8,2987.3,2.3806]
[1766340017236,3.3176,2987.6,2987.0,2.1147]
[1766340017458,3.3176,2987.6,2987.0,2.3784]
[1766340018244,3.3176,2987.6,2986.9,0.439]
[1766340018245,4.35268489,2987.8,2987.1,0.2616]
[1766340018552,4.35268489,2987.8,2987.2,2.3763]
[1766340018747,5.54748489,2987.8,2987.2,2.3763]
[1766340019320,5.54748489,2987.8,2987.3,0.2595]
[1766340019545,7.35427822,2987.8,2987.4,0.77878885]
[1766340019747,2.81249397,2987.8,2987.4,0.77878885]
[1766340019948,2.81249397,2987.8,2987.4,0.2595]
[1766340019949,1.00570064,2987.8,2987.4,0.2595]
[1766340020447,1.1948,2987.4,2986.8,0.2574]
[1766340020647,3.3176,2987.3,2986.8,0.6964]
[1766340020851,3.3176,2987.3,2986.8,0.2574]
[1766340021151,3.3176,2986.8,2986.4,0.001]
[1766340021354,3.3176,2986.7,2986.4,0.001]
[1766340021649,3.3176,2986.8,2986.1,0.439]
[1766340021847,3.3176,2986.8,2986.2,2.371]
[1766340022049,1.1948,2986.8,2986.4,2.1157]
[1766340022747,2.1228,2986.9,2986.4,2.3529]
[1766340023053,1.1948,2987.0,2986.4,2.6072]
[1766340023351,3.3176,2987.0,2986.4,2.6072]
[1766340023554,3.3176,2987.1,2986.5,2.367]
[1766340023855,1.44487599,2987.2,2986.7,2.1147]
[1766340024039,1.00587599,2987.2,2986.7,2.1147]
[1766340024245,5.36031194,2987.5,2986.9,0.2503]
[1766340024546,0.002,2987.6,2987.0,2.1147]
[1766340024751,3.3176,2987.5,2987.0,2.1147]
[1766340024953,4.32340517,2987.5,2987.0,2.1147]
[1766340025149,1.00580517,2987.5,2987.0,2.1147]
[1766340025314,1.00580517,2987.5,2987.1,0.2483]
[1766340025520,0.002,2987.6,2987.1,2.1147]
[1766340025760,0.002,2987.6,2987.1,2.3611]
[1766340025943,0.002,2987.6,2987.2,0.2464]
[1766340026251,0.002,2987.6,2987.2,2.3937]
[1766340026562,0.439,2987.7,2987.4,2.1473]
[1766340026756,0.439,2987.7,2987.2,2.1473]
[1766340026757,3.78605888,2987.7,2987.2,2.1473]
[1766340027060,0.439,2987.7,2987.2,2.1473]
[1766340028248,1.0976,2988.0,2987.3,2.5863]
[1766340028450,0.002,2988.0,2987.3,2.5863]
[1766340029919,0.002,2988.0,2987.4,2.1473]
[1766340030448,0.002,2987.5,2987.4,2.1473]
[1766340031019,0.002,2987.5,2986.4,0.2382]
[1766340031326,0.002,2987.5,2986.8,2.1473]
[1766340031652,1.0976,2988.0,2987.1,2.1473]
[1766340031832,1.0976,2988.0,2987.1,2.5863]
[1766340032428,0.002,2988.0,2987.1,2.5863]
[1766340033547,0.002,2988.0,2987.2,2.1473]
[1766340033753,0.002,2988.0,2987.3,2.1473]
[1766340034156,0.002,2988.0,2987.5,2.1473]
[1766340034355,0.002,2988.0,2987.5,2.5863]
[1766340035666,0.002,2988.0,2987.7,2.0508]
[1766340036258,0.002,2988.0,2987.4,2.0508]
[1766340036585,0.002,2988.0,2987.3,0.0167639]
[1766340036586,0.002,2988.0,2987.7,0.439]
[1766340037073,4.59489372,2988.3,2987.8,2.0508]
[1766340037649,6.63609372,2988.3,2987.8,2.0508]
[1766340037850,0.002,2988.0,2987.8,2.0508]
[1766340038378,0.002,2988.0,2987.7,0.439]
[1766340038571,0.002,2988.0,2987.7,2.4898]
[1766340040158,0.002,2988.0,2987.7,2.0508]
[1766340041182,4.59335867,2988.3,2987.7,2.0508]
[1766340041386,6.63455867,2988.1,2987.2,2.0508]
[1766340041679,1.14992721,2988.3,2987.3,2.4898]
[1766340041680,4.68132721,2988.3,2987.3,2.4898]
[1766340041866,4.59335867,2988.2,2987.3,2.4898]
[1766340042384,3.1206,2988.2,2987.3,3.78645878]
[1766340042590,0.439,2988.3,2987.4,2.42944588]
[1766340042892,9.72695867,2988.4,2987.4,2.42944588]
[1766340043189,13.07327571,2988.4,2987.4,2.42944588]
[1766340044298,9.72695867,2988.4,2987.4,3.7259267]
[1766340044505,5.1336,2988.4,2987.5,2.0508]
[1766340044791,5.1336,2988.4,2987.7,2.0508]
[1766340044792,13.073234,2988.4,2987.7,2.0508]
[1766340045967,13.075234,2988.4,2987.7,2.0508]
[1766340048601,1.0794,2988.3,2987.7,2.0508]
[1766340049301,1.0794,2988.3,2987.7,2.4898]
[1766340050300,7.71395867,2987.8,2987.4,0.001]
[1766340050505,7.71395867,2987.6,2987.1,0.439]
[1766340050678,1.0794,2987.5,2987.1,0.439]
[1766340050878,3.1206,2987.5,2987.1,0.439]
[1766340051078,1.0794,2987.5,2987.1,0.68965639]
[1766340051277,3.1206,2987.7,2987.1,0.68965639]
[1766340051475,3.1206,2987.7,2987.2,2.0508]
[1766340051903,4.59335867,2987.8,2987.2,2.0508]
[1766340052499,5.67275867,2987.8,2987.2,2.0508]
[1766340052800,7.71395867,2987.8,2987.2,2.0508]
[1766340053002,4.59335867,2987.8,2987.2,2.0508]
[1766340053395,5.67275867,2987.6,2986.8,2.0508]
[1766340053594,3.1206,2987.5,2986.9,0.439]
[1766340053903,3.1206,2987.5,2986.9,2.4898]
[1766340054480,3.1206,2987.5,2987.1,0.001]
[1766340054681,1.0794,2987.5,2987.1,0.001]
[1766340054880,1.0794,2987.5,2987.1,2.0518]
[1766340055101,8.8861668,2987.8,2987.1,2.0518]
[1766340055102,4.59335867,2987.8,2987.2,2.0508]
[1766340055300,5.63539992,2987.8,2987.3,2.0508]
[1766340056401,2.0412,2987.7,2987.1,0.001]
[1766340056786,8.98235795,2987.8,2987.1,0.001]
[1766340056986,11.02355795,2987.8,2987.1,0.001]
[1766340057187,12.10295795,2987.8,2987.1,0.001]
[1766340057393,3.1206,2987.7,2987.1,2.945]
[1766340057600,8.98235795,2987.8,2987.1,2.945]
[1766340057601,7.71395867,2987.6,2987.1,2.945]
[1766340057801,7.71395867,2987.6,2987.1,2.0518]
[1766340057996,7.71395867,2987.6,2987.1,0.001]
[1766340058611,1.0794,2987.5,2987.1,0.001]
[1766340059125,3.1206,2987.5,2987.1,0.001]
[1766340060004,4.59335867,2987.6,2987.1,0.001]
[1766340060411,7.71395867,2987.6,2987.1,0.001]
[1766340061283,3.1206,2987.5,2987.1,0.001]
[1766340062616,4.59335867,2987.6,2987.1,0.001]
[1766340062806,7.71395867,2987.4,2987.1,0.001]
[1766340063899,4.59335867,2987.2,2986.5,2.9457]
[1766340064102,7.71395867,2987.0,2986.5,0.439]
[1766340064312,7.71395867,2987.0,2986.5,0.73367]
[1766340064596,3.1206,2986.6,2986.2,0.001]
[1766340064997,1.0794,2986.5,2986.2,0.001]
[1766340065304,1.0794,2986.5,2986.0,0.44]
[1766340065305,3.1382,2986.4,2986.0,0.44]
[1766340065549,4.59335867,2986.5,2986.0,0.44]
[1766340065550,7.94177358,2986.5,2986.0,0.001]
[1766340065828,3.1382,2986.3,2986.0,0.001]
[1766340066229,7.73155867,2986.3,2986.0,0.001]
[1766340066996,3.1382,2986.0,2985.6,0.001]
[1766340068921,4.59335867,2985.9,2985.6,0.001]
[1766340069122,7.73155867,2985.9,2985.6,0.001]
[1766340069521,0.439,2986.2,2985.2,2.8368]
[1766340069522,5.03235867,2986.2,2985.2,0.001]
[1766340069721,7.73155867,2985.3,2984.7,0.001]
[1766340070111,4.59335867,2985.5,2984.8,1.9393]
[1766340070294,7.73155867,2985.5,2984.8,2.836]
[1766340070509,6.60795867,2985.5,2984.8,2.836]
[1766340070807,1.1236,2985.4,2984.9,0.2837]
[1766340071237,7.73155867,2985.3,2984.9,0.2837]
[1766340071441,7.73155867,2985.5,2984.8,2.8365]
[1766340071844,1.00637876,2985.7,2985.2,2.8365]
[1766340072341,3.1382,2985.7,2985.2,1.9393]
[1766340072542,3.1382,2985.7,2985.0,2.8367]
[1766340072737,3.1382,2985.7,2985.1,0.6625887]
[1766340077960,4.59335867,2985.8,2985.1,0.6625887]
[1766340078143,2.0146,2985.7,2984.9,0.439]
[1766340078456,3.1382,2985.6,2984.9,2.3783]
[1766340078658,3.1382,2985.5,2984.9,0.439]
[1766340078962,4.59335867,2985.6,2984.8,0.001]
[1766340078963,4.59335867,2985.4,2984.8,0.001]
[1766340079327,1.1236,2985.2,2984.8,0.001]
[1766340079526,3.1382,2985.2,2984.8,0.001]
[1766340080455,3.1382,2985.2,2985.0,0.001]
[1766340081247,7.73155867,2985.2,2984.8,0.001]
[1766340082056,3.1382,2985.2,2984.8,0.001]
[1766340091702,3.0465,2985.1,2984.8,0.001]
[1766340092802,6.69931838,2985.4,2984.8,0.001]
[1766340093014,3.0465,2985.0,2984.7,0.001]
[1766340094099,3.34954461,2985.5,2984.7,0.001]
[1766340094294,4.52358939,2985.5,2984.7,0.001]
[1766340094499,1.9479,2985.2,2984.7,0.001]
[1766340094816,3.0465,2985.2,2984.7,0.001]
[1766340095514,3.0485,2985.2,2984.7,0.001]
[1766340096207,3.0485,2985.2,2984.7,2.0457]
[1766340096385,0.002,2985.2,2984.8,2.0447]
[1766340096998,1.1238,2985.2,2984.7,0.9038]
[1766340097221,3.1814,2985.2,2984.7,0.9038]
[1766340097398,3.1814,2985.2,2984.7,2.9485]
[1766340103243,3.1814,2985.2,2984.7,3.62251099]
[1766340103846,0.002,2985.2,2984.7,4.02537622]
[1766340104142,3.6184,2985.6,2984.9,0.904]
[1766340104318,3.6184,2985.6,2985.0,2.9487]
[1766340104646,3.1794,2985.5,2985.0,2.9487]
[1766340104947,0.002,2985.2,2985.0,2.9487]
[1766340107541,0.002,2985.2,2985.0,2.0447]
[1766340107740,0.002,2985.2,2984.7,0.001]
[1766340107741,1.1238,2985.2,2984.7,0.001]
[1766340107923,1.1238,2985.2,2984.7,2.9504]
[1766340108554,0.002,2985.2,2984.8,2.9495]
[1766340109659,0.002,2985.2,2984.8,0.9048]
[1766340109859,0.002,2985.2,2984.9,0.905]
[1766340110160,0.002,2985.2,2985.0,2.0447]
[1766340110530,2.0576,2985.9,2985.2,2.0447]
[1766340110730,2.0576,2985.9,2985.3,2.9498]
[1766340110929,3.1794,2985.9,2985.3,2.9498]
[1766340111361,3.6184,2986.1,2985.3,3.68378]
[1766340111662,3.6184,2986.1,2985.3,0.73398]
[1766340111859,3.1814,2986.3,2985.6,2.95]
[1766340112063,3.1814,2986.3,2985.7,2.95]
[1766340112469,3.1814,2986.3,2985.3,7.43347416]
[1766340112659,0.002,2986.3,2985.4,0.84737271]
[1766340112859,0.002,2986.3,2985.5,2.9501]
[1766340113062,0.002,2986.3,2985.7,2.0447]
[1766340113397,3.1794,2986.2,2985.8,0.439]
[1766340113849,3.1794,2986.2,2985.7,0.439]
[1766340115237,1.1218,2986.1,2985.7,0.439]
[1766340118777,1.1218,2986.1,2985.7,2.4837]
[1766340118980,2.0576,2986.2,2985.7,2.4837]
[1766340119288,2.0576,2986.2,2985.7,3.3899]
[1766340119480,1.1238,2986.3,2985.7,3.3899]
[1766340119677,1.1238,2986.3,2985.8,2.9511]
[1766340120178,3.1814,2986.3,2985.8,2.9511]
[1766340124269,0.002,2986.3,2985.7,0.439]
[1766340124472,3.1794,2986.2,2985.7,0.439]
[1766340125196,0.002,2986.3,2985.7,3.3738]
[1766340125370,3.0861,2986.3,2985.7,3.71118]
[1766340126078,3.0841,2986.2,2985.7,3.71118]
[1766340127187,3.0841,2986.2,2985.8,2.0277]
[1766340127188,1.1611,2986.2,2985.8,2.0277]
[1766340127676,0.002,2986.3,2985.7,0.77638]
[1766340127869,0.002,2986.3,2985.8,2.9352]
[1766340129788,0.002,2986.3,2985.8,0.9075]
[1766340129957,0.002,2986.3,2985.7,0.439]
[1766340129958,0.002,2986.3,2986.0,2.0277]
[1766340130155,0.002,2986.3,2986.0,2.9354]
[1766340131392,0.002,2986.3,2985.7,3.3746]
[1766340131393,3.0861,2986.3,2985.7,3.3746]
[1766340131563,3.0861,2986.3,2985.7,4.04700575]
[1766340131764,3.0861,2986.3,2985.8,2.9356]
[1766340132370,3.0861,2986.3,2985.9,2.0277]
[1766340132770,3.0841,2986.2,2985.8,0.439]
[1766340133066,1.923,2986.2,2985.4,2.9358]
[1766340133272,3.35065867,2986.3,2985.1,0.001]
[1766340133273,5.03763756,2986.1,2985.1,0.001]
[1766340133480,1.1611,2985.9,2985.1,0.44]
[1766340133700,3.0841,2985.5,2985.1,0.44]
[1766340134314,1.923,2985.4,2984.8,0.001]
[1766340134505,1.1611,2985.5,2984.8,0.001]
[1766340134801,3.0841,2985.3,2984.8,0.001]
[1766340135696,0.50376376,2985.6,2985.0,2.0277]
[1766340135897,2.42676376,2985.6,2985.1,2.9361]
[1766340136202,3.58786376,2985.6,2985.1,2.0277]
[1766340136405,1.1611,2985.6,2985.1,2.0277]
[1766340136703,3.5231,2985.8,2985.2,2.9362]
[1766340136880,3.0841,2985.8,2985.2,2.9362]
[1766340137399,3.35065232,2986.3,2985.3,2.0277]
[1766340137577,1.1611,2986.1,2985.5,2.9363]
[1766340137772,3.0841,2986.1,2985.5,2.9363]
[1766340138806,6.43296693,2986.1,2985.5,2.9363]
[1766340139188,3.0841,2986.0,2985.5,2.9363]
[1766340139394,3.0841,2986.0,2985.2,2.9365]
[1766340139589,3.0841,2986.0,2985.3,3.56514612]
[1766340139806,3.0841,2986.0,2985.3,2.9365]
[1766340140187,3.5231,2986.2,2985.5,2.9365]
[1766340140784,2.362,2986.2,2985.5,2.9365]
[1766340140983,1.1611,2986.1,2985.5,2.9365]
[1766340141186,3.0841,2986.1,2985.5,2.9365]
[1766340143018,3.78975211,2986.2,2985.5,2.9365]
[1766340143313,3.0841,2986.0,2985.5,2.0277]
[1766340145227,1.1611,2985.9,2985.4,0.439]
[1766340145438,1.923,2986.0,2985.4,0.439]
[1766340145614,3.0841,2985.8,2985.4,0.439]
[1766340146837,3.1411,2986.1,2985.4,2.4222]
[1766340147034,3.1411,2986.1,2985.4,3.99996537]
[1766340147207,3.1411,2986.1,2985.5,2.8928]
[1766340148147,3.1411,2986.1,2985.5,1.9832]
[1766340148354,3.1411,2986.1,2985.6,2.8928]
[1766340149609,3.1431,2986.1,2985.6,2.8928]
[1766340151511,2.0008,2986.1,2985.4,2.01716537]
[1766340151828,3.1411,2986.0,2985.4,4.00036537]
[1766340152426,5.1541,2986.0,2985.4,4.00036537]
[1766340152732,3.1411,2986.0,2985.4,4.00036537]
[1766340152935,0.002,2986.1,2985.4,0.439]
[1766340153139,3.1411,2986.0,2985.4,1.3491]
[1766340154118,1.1423,2985.9,2985.4,0.439]
[1766340154320,3.1411,2985.9,2985.4,1.3493]
[1766340154518,1.1423,2985.9,2985.4,1.3493]
[1766340155437,3.0423,2985.9,2985.4,0.439]
[1766340155637,3.0718,2985.4,2985.1,0.001]
[1766340155822,4.59948424,2985.5,2985.1,0.001]
[1766340156139,7.67128424,2985.5,2985.1,0.001]
[1766340157351,3.0718,2985.5,2985.1,0.001]
[1766340158858,7.94881158,2985.7,2985.1,2.784]
[1766340158859,3.0718,2985.7,2985.1,2.784]
[1766340160054,6.42112118,2985.7,2985.1,2.784]
[1766340160234,1.1718,2985.6,2985.1,2.784]
[1766340160434,3.0718,2985.6,2985.1,1.8733]
[1766340161171,3.0718,2985.6,2985.1,0.001]
[1766340163546,6.42121804,2985.6,2985.1,0.001]
[1766340163746,3.0718,2985.6,2985.1,0.001]
[1766340164676,7.94885396,2985.7,2985.1,0.001]
[1766340164870,3.0718,2985.5,2985.1,0.001]
[1766340170155,3.34955699,2985.5,2984.8,0.001]
[1766340170567,3.34955699,2985.5,2984.8,2.7848]
[1766340170568,3.0718,2985.4,2984.8,2.7848]
[1766340170884,3.0718,2985.4,2984.9,1.8723]
[1766340171051,3.0718,2985.4,2984.9,2.7838]
[1766340171752,6.4215227,2985.4,2984.9,2.7838]
[1766340172472,1.9,2985.2,2984.7,0.44]
[1766340172781,1.9,2985.2,2984.7,3.224]
[1766340173088,1.1718,2985.3,2984.8,1.8723]
[1766340173286,1.1718,2985.3,2984.8,2.784]
[1766340173986,4.52157024,2985.3,2984.8,2.784]
[1766340174584,4.52157024,2985.3,2984.9,0.001]
[1766340175489,6.42157024,2985.3,2984.9,0.001]
[1766340175972,3.34977024,2985.3,2984.9,0.001]
[1766340176166,3.0718,2985.2,2984.9,0.001]
[1766340177377,3.34974981,2985.3,2984.9,0.001]
[1766340177683,4.52154981,2985.3,2984.9,0.001]
[1766340178185,3.34974981,2985.3,2984.7,0.39]
[1766340178388,3.34974981,2985.3,2984.6,0.001]
[1766340178567,3.0718,2985.1,2984.6,0.44]
[1766340178888,3.0718,2985.1,2984.6,3.2254]
[1766340179481,1.1718,2985.1,2984.6,3.2254]
[1766340179686,3.34989464,2985.2,2984.7,1.8723]
[1766340180562,3.0718,2984.9,2984.6,0.001]
[1766340181473,3.0718,2984.7,2984.3,0.001]
[1766340181680,1.9,2984.5,2984.3,0.001]
[1766340181875,1.9,2984.3,2984.1,0.001]
[1766340182082,5.77326031,2984.4,2984.1,0.001]
[1766340182384,5.77326031,2984.4,2983.9,1.8253]
[1766340182590,1.9,2984.5,2983.9,2.7386]
[1766340182787,1.1718,2985.1,2984.2,0.9133]
[1766340182988,1.1718,2985.1,2984.4,0.9133]
[1766340182989,4.52178897,2985.1,2984.4,0.9133]
[1766340183204,6.42178897,2985.1,2984.4,0.9133]
[1766340183775,6.42178897,2985.1,2984.5,0.001]
[1766340184498,6.42178897,2985.1,2984.5,1.8733]
[1766340185086,3.0718,2985.1,2984.5,2.7868]
[1766340185291,1.547,2985.3,2984.5,0.32358]
[1766340185583,4.89675145,2985.3,2984.7,2.8677]
[1766340185783,1.108,2985.2,2984.7,2.8677]
[1766340185983,3.0829,2985.2,2984.7,2.8677]
[1766340188878,0.441,2985.4,2984.9,0.9132]
[1766340189083,0.002,2985.4,2985.0,1.9541]
[1766340189393,0.002,2985.4,2985.0,2.8673]
[1766340190588,0.002,2985.4,2984.7,3.78939264]
[1766340190804,0.002,2985.4,2985.1,1.9541]
[1766340190988,0.002,2985.4,2985.1,2.8663]
[1766340192722,0.002,2985.4,2985.2,1.9541]
[1766340194994,0.002,2985.5,2985.2,2.8625]
[1766340195817,0.002,2985.5,2984.9,1.9541]
[1766340196122,0.002,2985.5,2985.0,2.862]
[1766340196289,0.002,2985.5,2985.0,0.9079]
[1766340196491,0.002,2985.5,2985.1,1.9541]
[1766340196689,0.002,2985.5,2985.1,2.8616]
[1766340197420,0.002,2985.6,2985.1,3.2981]
[1766340197728,0.002,2985.6,2985.3,2.8591]
[1766340199028,1.108,2985.1,2983.8,0.001]
[1766340199198,4.60346031,2985.4,2984.5,0.001]
[1766340199199,3.0829,2985.0,2984.5,0.001]
[1766340199405,3.0829,2984.9,2984.5,0.001]
[1766340201219,3.0829,2984.9,2983.9,0.001]
[1766340201220,4.60146031,2984.7,2983.9,0.001]
[1766340201421,3.0829,2984.4,2983.9,0.001]
[1766340202325,1.108,2984.4,2983.9,1.9551]
[1766340202630,3.0829,2984.6,2984.0,3.1329]
[1766340203405,1.108,2984.5,2984.0,3.1329]
[1766340203612,1.9749,2984.6,2984.0,3.1329]
[1766340203932,3.0829,2984.6,2984.0,3.1329]
[1766340207004,3.0016,2984.5,2984.0,3.1329]
[1766340207206,7.95206553,2984.6,2983.9,0.24061]
[1766340207406,3.0016,2984.4,2983.9,0.001]
[1766340208022,3.0016,2984.4,2983.9,3.0044]
[1766340211115,8.39450762,2984.5,2983.9,3.0044]
[1766340211314,3.0016,2984.4,2983.9,3.0044]
[1766340212846,5.0146,2984.4,2983.9,3.0044]
[1766340213143,4.60484201,2984.1,2983.9,0.001]
[1766340213348,4.60484201,2984.1,2983.8,0.001]
[1766340213927,3.0016,2984.2,2983.8,0.001]
[1766340215246,3.0016,2984.2,2983.9,0.002]
[1766340215765,4.6057368,2984.0,2983.6,1e-08]
[1766340215930,4.6057368,2984.0,2982.8,0.6]
[1766340215931,2.9734,2983.4,2982.9,4.2356]
[1766340217432,2.9734,2983.3,2982.8,0.6]
[1766340217751,1.0859,2983.0,2982.4,0.001]
[1766340217946,1.8875,2982.8,2982.4,0.001]
[1766340218317,1.5249,2982.9,2982.4,0.001]
[1766340218515,1.5249,2982.9,2982.4,1.0843]
[1766340218716,0.439,2982.8,2982.4,1.0843]
[1766340219281,0.439,2982.8,2982.2,0.001]
[1766340219282,6.4932368,2982.6,2982.2,0.001]
[1766340219422,1.8875,2982.5,2982.2,0.001]
[1766340219751,1.8875,2982.8,2982.3,1.0833]
[1766340219940,0.44,2982.6,2982.3,3.0356]
[1766340220647,2.9734,2983.2,2982.4,1.0833]
[1766340220852,1.8875,2983.0,2982.4,1.0833]
[1766340221015,2.9734,2982.9,2982.2,0.001]
[1766340221216,1.8875,2982.6,2982.2,0.001]
[1766340221629,2.9734,2982.6,2982.0,1.0833]